Cogmind - Beta 14 @@@ ROGUE MODE // 2024.11.24 @ 17:14:35 Player: Fangrelle Result: Destroyed by 54-YY5(R) with Subdweller Machine Gun Performance ------------- Evolutions (0) 0 Regions Visited (3) 600 Robots Destroyed (7) 35 Value Destroyed (191) 191 Prototype IDs (0) 0 Alien Tech Used (0) 0 Bonus (0) 0 TOTAL SCORE: 826 Bonus ------- None Cogmind --------- Core Integrity 0/250 Matter 263/300 Energy 200/200 System Corruption 0% Temperature Cool (0) Movement Core (850) Ox16 Location -10/Subcaves Parts ------- > --- POWER (1) -------- Subdweller Power Source > --- PROPULSION (2) --- (None) > --- UTILITY (2) ------ High-capacity Storage Unit Signal Interpreter > --- WEAPON (2) ------- Medium Laser Assault Rifle > --- INVENTORY (20) --- Aluminum Leg Aluminum Leg Wheel Wheel Signal Interpreter Signal Interpreter Light Assault Rifle Mining Laser Peak State ------------ > --- POWER ------------ Ion Engine > --- PROPULSION ------- Aluminum Leg Aluminum Leg > --- UTILITY ---------- Small Storage Unit Signal Interpreter > --- WEAPON ----------- Medium Laser Light Assault Rifle > --- INVENTORY -------- Light Ion Engine Light Treads Light Treads Wheel Wheel Assault Rifle [Rating: 7] Favorites ----------- Power Light Ion Engine Engine Light Ion Engine Propulsion Light Treads Treads Light Treads Leg Aluminum Leg Utility Signal Interpreter Storage High-capacity Storage Unit Processor Signal Interpreter Weapon Medium Laser Energy Gun Medium Laser Ballistic Gun Assault Rifle Special Weapon Mining Laser Build | -11 -10 -10 -10 ------- Run | Yrd Mat Min Sub Slots Evolved . | . . . . Power . | . . . . Propulsion . | . . . . Utility . | . . . . Weapon . | . . . . Parts Attached 8 | . 2 4 2 Power 2 | . . 1 1 Engine 2 | . . 1 1 Core . | . . . . Reactor . | . . . . Propulsion 2 | . . 2 . Treads 2 | . . 2 . Leg . | . . . . Wheel . | . . . . Hover . | . . . . Flight . | . . . . Utility 2 | . 2 . . Device . | . . . . Storage 1 | . 1 . . Processor 1 | . 1 . . Hackware . | . . . . Protection . | . . . . Artifact . | . . . . Weapon 2 | . . 1 1 Energy Gun . | . . . . Energy Cannon . | . . . . Ballistic Gun 1 | . . . 1 Ballistic Cannon . | . . . . Launcher . | . . . . Special Weapon 1 | . . 1 . Impact Weapon . | . . . . Slashing Weapon . | . . . . Piercing Weapon . | . . . . Special Melee Weapon . | . . . . Unidentified Prototypes . | . . . . Parts Lost 4 | . . 1 3 Power 2 | . . 1 1 Propulsion 2 | . . . 2 Utility . | . . . . Weapon . | . . . . Highest Loss Streak 3 | . . 1 3 To Critical Strikes . | . . . . Average Slot Usage (%) 88 | . 94 98 81 Engine 12 | . 14 12 12 Treads 12 | . . 17 12 Leg 6 | . 28 10 . Storage 14 | . 14 14 14 Processor 13 | . 9 14 14 Energy Gun 14 | . 14 14 14 Ballistic Gun 13 | . 14 13 14 Peak Build Rating 7 | . 7 7 7 Average Rating 6 | . 6 6 6 On Entrance 6 | 6 6 7 7 Naked Turns . | . . . . Heaviest Build 49 | 13 48 48 49 Greatest Support 40 | 20 20 40 40 Greatest Overweight (x) 16 | . 2 2 16 Average Overweight (x) 3 | . . 1 5 Largest Inventory Capacity 20 | . 20 20 20 Average Capacity 19 | . 14 20 20 Most Carried 9 | . 9 9 8 Average Carried 8 | . 7 8 8 Final Capacity 20 | 8 20 20 20 Final Carried 9 | 6 9 8 8 Class Distribution -------------------- 100% | Mutant Dominant Class ---------------- Mutant | -10/Materials Mutant | -10/Mines Mutant | -10/Subcaves Resources | -11 -10 -10 -10 ----------- Run | Yrd Mat Min Sub Matter Collected 293 | 200 . 27 66 Remotely . | . . . . Salvage Created 244 | . . 145 99 Parts 9 | . . 6 3 Haulers Intercepted . | . . . . Recyclers Shooed . | . . . . Parts Field Recycled . | . . . . Retrieved Matter . | . . . . Parts Self-Destructed 4 | . . . 4 Prevented . | . . . . Kills | -11 -10 -10 -10 ------- Run | Yrd Mat Min Sub Combat Hostiles Destroyed 7 | . . 5 2 Guns 7 | . . 5 2 Classes Destroyed 3 | . . 2 1 Swarmer 3 | . . 3 . Grunt 2 | . . 2 . Subdweller 2 | . . . 2 Best Kill Streak 5 | . . 5 1 Combat Bots Only 5 | . . 5 1 Max Kills in Single Turn 1 | . . 1 1 Gunslinging . | . . . . Exploded . | . . . . Melee . | . . . . Uniques/NPCs Destroyed . | . . . . Combat | -11 -10 -10 -10 -------- Run | Yrd Mat Min Sub Hostile Shots Fired 78 | . . 28 50 Missed 18 | . . 7 11 Damage Taken 859 | . . 184 675 Core 267 | . . 29 238 Absorbed by Shields . | . . . . Core Remaining (%) 100 | 100 . . . Volleys Fired 33 | . . 14 19 Largest 2 | . . 2 2 Hottest 100 | . . 100 70 Shots Fired 65 | . . 27 38 Gun 64 | . . 26 38 Cannon . | . . . . Launcher . | . . . . Special 1 | . . 1 . Kinetic 32 | . . 13 19 Thermal 33 | . . 14 19 Explosive . | . . . . Electromagnetic . | . . . . Robot Hit Streak 14 | . . 14 8 Robot Miss Streak 3 | . . 1 3 Penetration Max . | . . . . Secondary Targets 1 | . . 1 . Max Gunslinging Chain 1 | . . 1 . Shots Hit Robots 44 | . . 21 23 Core Hits 13 | . . 9 4 Critical Kills . | . . . . Critical Parts Destroyed . | . . . . Critical Strikes 1 | . . 1 . Burn 1 | . . 1 . Melee Attacks . | . . . . Impact . | . . . . Slashing . | . . . . Piercing . | . . . . Sneak Attacks . | . . . . Combat Hostiles . | . . . . Follow-up Attacks . | . . . . Damage Inflicted 502 | . . 217 285 Guns 502 | . . 217 285 Cannons . | . . . . Explosions . | . . . . Melee . | . . . . Ramming . | . . . . Kinetic 227 | . . 90 137 Thermal 275 | . . 127 148 Explosive . | . . . . Electromagnetic . | . . . . Impact . | . . . . Slashing . | . . . . Piercing . | . . . . Highest Corruption . | . . . . Average Corruption . | . . . . Corruption Purged . | . . . . Corruption Blocked . | . . . . Overload Shots . | . . . . Overflow Damage . | . . . . Projectiles . | . . . . Explosions . | . . . . Melee . | . . . . Knockbacks . | . . . . Impact . | . . . . Kinetic . | . . . . Secondary . | . . . . Self-Inflicted Damage . | . . . . Shots . | . . . . Rammed . | . . . . Targets Rammed . | . . . . Kicked . | . . . . Crushed . | . . . . Highest Temperature 114 | . . 114 . Average Temperature 48 | . . 48 . Received Heat Transfer 162 | . . 54 108 Siege Activations . | . . . . Robots Corrupted . | . . . . Combat Hostiles . | . . . . Parts Fried . | . . . . Impact Corruptions . | . . . . Robots Melted . | . . . . Combat Hostiles . | . . . . Parts Melted . | . . . . Heat Transferred 888 | . . 444 444 Parts Sabotaged . | . . . . Parts Stolen . | . . . . Parts Stripped . | . . . . Power Chain Reactions . | . . . . Alert | -11 -10 -10 -10 ------- Run | Yrd Mat Min Sub Peak Influence 117 | . 20 117 . Initial 7 | . . 7 . Average 62 | . 3 83 . Maximum Alert Level . | . . . . Low Security (%) 100 | . 100 100 . Level 1 . | . . . . Level 2 . | . . . . Level 3 . | . . . . Level 4 . | . . . . Level 5 . | . . . . High Security . | . . . . Max Security . | . . . . Squads Dispatched . | . . . . Investigation . | . . . . Extermination . | . . . . Reinforcement . | . . . . Assault . | . . . . Garrison . | . . . . Intercept . | . . . . Searches Triggered . | . . . . Construction Impeded . | . . . . Haulers Reinforced . | . . . . Active Scanning Responses . | . . . . Cargo Convoy Interrupts . | . . . . Stealth | -11 -10 -10 -10 --------- Run | Yrd Mat Min Sub Distress Signals . | . . . . Communications Jammed . | . . . . Distress Signals . | . . . . Times Spotted 13 | . 3 5 5 Peak Tracking Total 4 | . 2 2 4 Tactical Retreats . | . . . . Traps | -11 -10 -10 -10 ------- Run | Yrd Mat Min Sub Traps Triggered . | . . . . Indirectly . | . . . . Trap Hack Attempts . | . . . . Triggered . | . . . . Disarmed . | . . . . Reprogrammed . | . . . . Reused . | . . . . Traps Extracted . | . . . . Installed . | . . . . Triggered 1 | . . . 1 Machines | -11 -10 -10 -10 ---------- Run | Yrd Mat Min Sub Machines Disabled . | . . . . Max in Single Turn . | . . . . Machines Repaired . | . . . . Machines Dismantled . | . . . . Machines Sabotaged . | . . . . Overloaded Fab Kills . | . . . . Hacking | -11 -10 -10 -10 --------- Run | Yrd Mat Min Sub Machines Accessed 2 | . 2 . . Terminals 2 | . 2 . . Fabricators . | . . . . Repair Stations . | . . . . Recycling Units . | . . . . Scanalyzers . | . . . . Garrison Access . | . . . . Total Hacks 6 | . 6 . . Successful 3 | . 3 . . Failed 3 | . 3 . . Catastrophic . | . . . . Database Lockouts . | . . . . Manual 7 | . 7 . . Terminals 6 | . 6 . . Fabricators . | . . . . Repair Stations . | . . . . Recycling Units . | . . . . Scanalyzers . | . . . . Garrison Access . | . . . . Terminal Hacks . | . . . . Fabricator Hacks . | . . . . Repair Station Hacks . | . . . . Recycling Unit Hacks . | . . . . Scanalyzer . | . . . . Garrison Access Hacks . | . . . . Unauthorized Hacks 3 | . 3 . . Terminals 3 | . 3 . . Botnet 1 | . 1 . . Operators 1 | . 1 . . Skim 1 | . 1 . . Fabricators . | . . . . Repair Stations . | . . . . Recycling Units . | . . . . Scanalyzers . | . . . . Garrison Access . | . . . . Data Cores Recovered . | . . . . Used . | . . . . Hacking Detections 2 | . 2 . . Full Trace Events . | . . . . Feedback Events . | . . . . Feedback Blocked . | . . . . Robot Schematics Acquired . | . . . . Robots Built . | . . . . Authchips . | . . . . Time . | . . . . Total Robot Build Rating . | . . . . Part Schematics Acquired . | . . . . Parts Built . | . . . . Authchips . | . . . . Time . | . . . . Total Part Build Rating . | . . . . Parts Repaired . | . . . . Time . | . . . . Parts Recycled . | . . . . Recycled Matter . | . . . . Retrieved Matter . | . . . . Retrieved Components . | . . . . Parts Scanalyzed . | . . . . Part Schematics Acquired . | . . . . Parts Damaged . | . . . . Bothacking | -11 -10 -10 -10 ------------ Run | Yrd Mat Min Sub Used RIF Installer . | . . . . Robots Hacked . | . . . . Non-combat . | . . . . Combat . | . . . . Robot Hacks Applied . | . . . . Relay Couplers Released . | . . . . Fabnet Peak Effective % . | . . . . Robots Rewired . | . . . . Allies Hacked . | . . . . Hacks Repelled . | . . . . Allies | -11 -10 -10 -10 -------- Run | Yrd Mat Min Sub Total Allies . | . . . . Largest Group . | . . . . Highest-Rated Group . | . . . . Highest-Rated Ally . | . . . . Total Orders . | . . . . Ally Attacks . | . . . . Total Damage . | . . . . Kills . | . . . . Allies Corrupted . | . . . . Allies Melted . | . . . . Intel | -11 -10 -10 -10 ------- Run | Yrd Mat Min Sub Robot Analysis Total . | . . . . Derelict Logs Recovered 2 | . . 2 . Drone Launches . | . . . . Drone Recoveries . | . . . . Exploration | -11 -10 -10 -10 ------------- Run | Yrd Mat Min Sub Turns Passed 1339 | . 147 395 797 Spaces Moved 383 | 1 84 116 182 Core 51 | . . . 51 Treads 206 | . . 75 131 Legs 126 | 1 84 41 . Wheels . | . . . . Hover . | . . . . Flight . | . . . . Fastest Speed 120 | 120 120 240 240 Average Speed 306 | 120 170 251 405 Slowest Speed 850 | 120 260 320 850 Overloaded Moves . | . . . . Propulsion Burnouts . | . . . . Robots Hopped . | . . . . Cave-ins Triggered . | . . . . Exploration Rate (%) 22 | 2 24 43 20 Regions Visited 3 Branch Regions 2 Pre-discovered Areas . | . . . . Known Exits Taken 2 | . 1 1 . Unknown Exits Taken 1 | 1 . . . Scrap Searched . | . . . . Spaces Dug . | . . . . Terrain Destroyed . | . . . . Melee . | . . . . Projectile . | . . . . AOE . | . . . . Terrain Rammed . | . . . . Walls Destroyed . | . . . . Machines Disabled . | . . . . Actions | -11 -10 -10 -10 --------- Run | Yrd Mat Min Sub Total 484 | . 89 192 203 Wait 59 | . . 59 . Move 380 | . 83 115 182 Hop . | . . . . Pick Up 3 | . 3 . . Fast Attach 2 | . 1 . 1 Attach 1 | . . 1 . Detach . | . . . . Swap 5 | . 1 3 1 Drop 1 | . 1 . . Fire 33 | . . 14 19 Melee . | . . . . Ram . | . . . . Kick . | . . . . Crush . | . . . . Escape Stasis . | . . . . Rewire . | . . . . Trap . | . . . . Miscellaneous . | . . . . Route ------- -11/Scrapyard -10/Materials -10/Mines -10/Subcaves (discovered 1 exit: [*Mat]) History --------- Turn | Location | Event 1 | -11/Scrapyard | Discovered new exit (range 0) 1 | -11/Scrapyard | Entered Materials 63 | -10/Materials | Discovered new exit (range 16) 145 | -10/Materials | Identified exit to Mines 148 | -10/Materials | Entered Mines 307 | -10/Mines | Build established: Mutant 404 | -10/Mines | Learned Materials trap positions 419 | -10/Mines | Learned location of 1 exit from Materials 538 | -10/Mines | Discovered new exit (range 3) 541 | -10/Mines | Identified exit to Subcaves 543 | -10/Mines | Entered Subcaves 586 | -10/Subcaves | Discovered new exit (range 8) 894 | -10/Subcaves | Core integrity fell below 50% 908 | -10/Subcaves | Core integrity fell below 20% 936 | -10/Subcaves | Lost 3 parts (1p2n) 1340 | -10/Subcaves | Destroyed by 54-YY5(R) with Subdweller Machine Gun Last Messages --------------- 00880_ S-10 Pest destroyed. 00881_ Subatomizers dissect the Flight Unit. 00883_ S-10 Pest destroyed. 00888_ Flight Unit fries itself beyond repair. 00889_ 90-JXP(R) destroyed. 00891_ Flight Unit fries itself beyond repair. 00891_ Subatomizers dissect the Flight Unit. 00899_ Lgt. Treads destroyed. 00900_ Flight Unit fries itself beyond repair. 00900_ Lgt. Assault Rifle fries itself beyond repair. 00903_ Subatomizers dissect the Sub. Monowheel. 00905_ Lgt. Treads destroyed. 00910_ HG-RON(R) destroyed. 00916_ Acquired 16 matter. 00918_ Subatomizers dissect the Sub. Monowheel. 00924_ Acquired 50 matter. 00931_ Subatomizers dissect the Sub. Monowheel. 00984_ Acquired Sub. Power Source. 00994_ Subatomizers dissect the Sub. Monowheel. 01104_ Subatomizers dissect the Sub. Monowheel, destroying it. Map ----- +----------------------------------------------------+ | #### ####?## #???????????????????????? | | #??# ######## #???????????????????????? | | #??# ### #???????????????????????? | | ## #?# ## #???????????????????????? | | ?# ## #### #???????????????????????? | | ?# #?# ##??# #???????????????????????? | | ?####??##### #??## ####????????????????????? | | ???????????###?## #????????????????????? | | ?????????????### #????????????????????? | | ??##????????## ## ##????????????????????? | | ?## ###?????# #### ###?????????????????????? | | ?# ##???## ##??####???????????????????????? | | ?# ##?## &% ####???????????????????????????? | | ?# ### R ##??????????????????????????? | | ?## ###????????????????????????? | | ??## % ##???????????????????????? | | ???## ## ##??????????????????????? | | ????## ## #### #??????????????????????? | | ?????#### #### #??????????????????????? | | ????????## ### #??????????????????????? | | ?????#???### ### ## #??????????????????????? | | ????## ## #?##### ##??????????????????????? | | ????# #????## ##???????????????????????? | | ????# # ####????????????????????? | | ????# ### # ##???????????????????? | | ????######??? ### ### @ #???????????????????? | | ?????????????##??#### #??????????????????? | | ???????????????????# ???????????????? | | ???????????????????# #??????????????? | | ???????????????????## ## #??????????????? | | ????????????????????## #? #??????????????? | | ?????????????????????##### ##?? #??????????????? | | ??????????????????????????##???? #??????????????? | | ??????????????????????????????????#??????????????? | | ?????????????????????????????????????????????????? | | ?????????????????????????????????????????????????? | | ?????????????????????????????????????????????????? | | ?????????????????????????????????????????????????? | | ?????????????????????????????????????????????????? | | ?????????????????????????????????????????????????? | | ?????????????????????????????????????????????????? | | ?????????????????????????????????????????????????? | | ?????????????????????????????????????????????????? | | ?????????????????????????????????????????????????? | | ?????????????????????????????????????????????????? | | ?????????????????????????????????????????????????? | | ?????????????????????????????????????????????????? | | ?????????????????????????????????????????????????? | | ?????????????????????????????????????????????????? | | ?????????????????????????????????????????????????? | +----------------------------------------------------+ Best States ------------- Heat Dissipation 25 Energy Generation 15 Energy Capacity 250 Matter Stores 300 Matter Capacity 300 Sight Range 16 Terrain Scan Density 10 Evasion (%) 55 Recoil Reduction 2 Item Schematics ----------------- None Robot Schematics ------------------ None Fabricated ------------ Nothing Alien Tech Used ----------------- None Achievements -------------- None Challenges ------------ None Game ------ Seed DisposableVoltaicCyclogen Manual? 0 Play Time 00:04:07 Cumulative 134.9 hours Start 2024.11.24 @ 17:11:24 End 2024.11.24 @ 17:14:35 Sessions 1 Manual Loads 0 Difficulty Rogue Special Mode None Game No. 262 Rogue 262 Adventurer 0 Explorer 0 Win Type - Total 0 Types 0/0/0/0/0/0/0/0/0 Lore% 43 Gallery% 41 Achievement% 36 Wizard Run 0 Options --------- Layout 0 ASCII 0 Keyboard 0 Movement Mouse Keybinds 0 Fullscreen 1 Font 24/Smallcaps Map View 91x25 Zoom Use 100% Tactical HUD 1 Map Filters NONE Filters NONE Steam 1 RUN: 906d2a44-b21a-4862-b8e6-d19907171a1a